Cogmind - Beta 9.2 @@@ ROGUE MODE // 2019.12.13 @ 13:00:00 Player: SHADOWELITE7 Result: Destroyed by Y-45 Defender with Beam Rifle Performance ------------- Evolutions (1) 500 Regions Visited (2) 400 Robots Destroyed (29) 145 Value Destroyed (872) 872 Prototype IDs (1) 20 Alien Tech Used (0) 0 Bonus (0) 0 TOTAL SCORE: 1937 Bonus ------- None Cogmind --------- Core Integrity 0/400 Matter 300/300 Energy 80/100 System Corruption 0% Temperature Cool (15) Movement Core (100) Ox1 Location -9/Materials Parts ------- > --- POWER (2) -------- (None) > --- PROPULSION (2) --- (None) > --- UTILITY (2) ------ Small Storage Unit > --- WEAPON (3) ------- (None) > --- INVENTORY (6) ---- Light Nuclear Core Heavy EM Pulse Gun Peak State ------------ > --- POWER ------------ Light Deuterium Engine Light Deuterium Engine > --- PROPULSION ------- Light Treads Light Treads > --- UTILITY ---------- Cooling System Small Storage Unit > --- WEAPON ----------- Shock Rifle Improved Assault Rifle Improved Light Cannon > --- INVENTORY -------- Light Nuclear Core Heavy EM Pulse Gun Light EM Pulse Cannon Improved Light Cannon Improved Light Cannon [Rating: 20] Favorites ----------- Power Light Deuterium Engine Engine Light Deuterium Engine Propulsion Light Treads Treads Light Treads Utility Small Storage Unit Device Cooling System Storage Small Storage Unit Weapon Light Assault Rifle Energy Gun Shock Rifle Energy Cannon Light EM Pulse Cannon Ballistic Gun Light Assault Rifle Ballistic Cannon Improved Light Cannon Launcher Grenade Launcher Build | -11 -10 -9 ------- Run | Scr Mat Mat Slots Evolved 2 | . . 2 Power 1 | . . 1 Propulsion . | . . . Utility . | . . . Weapon 1 | . . 1 Parts Attached 20 | 6 1 13 Power 4 | 1 . 3 Engine 4 | 1 . 3 Core . | . . . Reactor . | . . . Propulsion 4 | 2 . 2 Treads 4 | 2 . 2 Leg . | . . . Wheel . | . . . Hover . | . . . Flight . | . . . Utility 2 | 1 . 1 Device 1 | . . 1 Storage 1 | 1 . . Processor . | . . . Hackware . | . . . Protection . | . . . Artifact . | . . . Weapon 10 | 2 1 7 Energy Gun 1 | . . 1 Energy Cannon 1 | . . 1 Ballistic Gun 4 | 2 . 2 Ballistic Cannon 3 | . . 3 Launcher 1 | . 1 . Special Weapon . | . . . Impact Weapon . | . . . Slashing Weapon . | . . . Piercing Weapon . | . . . Special Melee Weapon . | . . . Unidentified Prototypes 1 | . . 1 Parts Lost 10 | . . 10 Power 2 | . . 2 Propulsion 2 | . . 2 Utility 1 | . . 1 Weapon 5 | . . 5 Highest Loss Streak 9 | . . 9 Average Slot Usage (%) 87 | . 85 88 Engine 19 | . 14 20 Treads 23 | . 28 21 Device 2 | . . 3 Storage 11 | . 14 11 Energy Gun 3 | . . 4 Ballistic Gun 16 | . 18 15 Ballistic Cannon 5 | . . 7 Launcher 4 | . 9 2 Naked Turns . | . . . Heaviest Build 26 | 11 13 26 Greatest Support 40 | 40 40 40 Greatest Overweight (x) 7 | . . 7 Average Overweight (x) . | . . . Largest Inventory Capacity 6 | 6 6 6 Average Capacity 5 | 5 6 6 Most Carried 6 | 3 4 6 Average Carried 3 | 1 3 4 Final Capacity 6 | 6 6 6 Final Carried 4 | 2 4 2 Class Distribution -------------------- 54% | Gunner 45% | Mutant Dominant Class ---------------- Mutant | -10/Materials Gunner | -9/Materials Resources | -11 -10 -9 ----------- Run | Scr Mat Mat Matter Collected 782 | 220 186 376 Remotely . | . . . Salvage Created 832 | . 237 595 Parts 63 | . 20 43 Haulers Intercepted . | . . . Recyclers Shooed . | . . . Parts Field Recycled . | . . . Retrieved Matter . | . . . Parts Self-Destructed . | . . . Prevented . | . . . Kills | -11 -10 -9 ------- Run | Scr Mat Mat Combat Hostiles Destroyed 20 | . 7 13 Guns 7 | . 2 5 Cannons 4 | . . 4 AOE 9 | . 5 4 Classes Destroyed 9 | . 5 4 Worker 3 | . 1 2 Builder 2 | . . 2 Tunneler 1 | . 1 . Operator 1 | . 1 . Watcher 2 | . 1 1 Grunt 15 | . 7 8 Brawler 1 | . . 1 Duelist 1 | . . 1 Sentry 3 | . . 3 Best Kill Streak 8 | . 4 8 Combat Bots Only 7 | . 2 7 Max Kills in Single Turn 2 | . 2 2 Gunslinging . | . . . Exploded 2 | . 1 2 Melee . | . . . Uniques/NPCs Destroyed . | . . . Combat | -11 -10 -9 -------- Run | Scr Mat Mat Damage Taken 2118 | . 284 1834 Core 547 | . 137 410 Absorbed by Shields . | . . . Core Remaining (%) 72 | 100 45 . Volleys Fired 55 | . 16 39 Largest 3 | . 2 3 Hottest 134 | . 50 134 Shots Fired 134 | . 32 102 Gun 78 | . 16 62 Cannon 37 | . . 37 Launcher 19 | . 16 3 Special . | . . . Kinetic 105 | . 16 89 Thermal . | . . . Explosive 19 | . 16 3 Electromagnetic 10 | . . 10 Robot Hit Streak 18 | . 11 18 Robot Miss Streak 5 | . 1 5 Penetration Max . | . . . Secondary Targets 1 | . . 1 Max Gunslinging Chain 1 | . . 1 Shots Hit Robots 85 | . 23 62 Core Hits 56 | . 23 33 Critical Hits 1 | . . 1 Critical Kills . | . . . Critical Parts Destroyed 1 | . . 1 Melee Attacks . | . . . Impact . | . . . Slashing . | . . . Piercing . | . . . Sneak Attacks . | . . . Combat Hostiles . | . . . Follow-up Attacks . | . . . Damage Inflicted 1858 | . 683 1175 Guns 544 | . 72 472 Cannons 479 | . . 479 Explosions 826 | . 611 215 Melee . | . . . Ramming 9 | . . 9 Kinetic 868 | . 72 796 Thermal 35 | . . 35 Explosive 791 | . 611 180 Electromagnetic 155 | . . 155 Impact . | . . . Slashing . | . . . Piercing . | . . . Highest Corruption . | . . . Average Corruption . | . . . Corruption Purged . | . . . Overload Shots . | . . . Overflow Damage 1 | . 1 . Projectiles . | . . . Explosions 1 | . 1 . Melee . | . . . Knockbacks 3 | . . 3 Impact . | . . . Kinetic 2 | . . 2 Secondary 1 | . . 1 Self-Inflicted Damage 129 | . 128 1 Shots 6 | . 6 . Rammed 3 | . . 3 Targets Rammed 3 | . . 3 Kicked . | . . . Crushed . | . . . Highest Temperature 126 | . 38 126 Average Temperature 31 | . 12 37 Received Heat Transfer 816 | . 90 726 Siege Activations . | . . . Robots Corrupted . | . . . Combat Hostiles . | . . . Parts Fried 1 | . . 1 Impact Corruptions . | . . . Robots Melted . | . . . Combat Hostiles . | . . . Parts Melted . | . . . Heat Transferred . | . . . Parts Sabotaged . | . . . Parts Stolen . | . . . Parts Stripped . | . . . Power Chain Reactions 1 | . . 1 Missiles Intercepted . | . . . Alert | -11 -10 -9 ------- Run | Scr Mat Mat Peak Influence 303 | . 303 202 Average Influence 96 | . 118 104 Maximum Alert Level 1 | . 1 1 Low Security (%) 88 | 100 70 93 Level 1 11 | . 29 6 Level 2 . | . . . Level 3 . | . . . Level 4 . | . . . Level 5 . | . . . High Security . | . . . Max Security . | . . . Squads Dispatched 4 | . 2 2 Investigation 1 | . 1 . Extermination . | . . . Reinforcement 3 | . 1 2 Assault . | . . . Garrison . | . . . Intercept . | . . . Construction Impeded 1 | . . 1 Haulers Reinforced . | . . . Stealth | -11 -10 -9 --------- Run | Scr Mat Mat Distress Signals 2 | . . 2 Communications Jammed . | . . . Distress Signals . | . . . Times Spotted 35 | . 9 26 Peak Tracking Total 8 | . 2 8 Tactical Retreats . | . . . Traps | -11 -10 -9 ------- Run | Scr Mat Mat Traps Triggered . | . . . Indirectly . | . . . Trap Hack Attempts . | . . . Triggered . | . . . Disarmed . | . . . Reprogrammed . | . . . Reused . | . . . Traps Extracted . | . . . Installed . | . . . Triggered . | . . . Machines | -11 -10 -9 ---------- Run | Scr Mat Mat Machines Disabled 5 | . 5 . Max in Single Turn 1 | . 1 . Machines Sabotaged . | . . . Garrisons Compromised . | . . . Overloaded Fab Kills . | . . . Fab Network Shutdowns . | . . . Hacking | -11 -10 -9 --------- Run | Scr Mat Mat Machines Accessed 9 | . 3 6 Terminals 7 | . 3 4 Fabricators . | . . . Repair Stations 1 | . . 1 Recycling Units 1 | . . 1 Scanalyzers . | . . . Garrison Access . | . . . Total Hacks 25 | . 10 15 Successful 17 | . 4 13 Failed 8 | . 6 2 Catastrophic 2 | . 2 . Database Lockouts . | . . . Manual 1 | . 1 . Terminals 19 | . 10 9 Fabricators . | . . . Repair Stations 2 | . . 2 Recycling Units 4 | . . 4 Scanalyzers . | . . . Garrison Access . | . . . Terminal Hacks 12 | . 4 8 Record 4 | . 3 1 Robot Analysis 1 | . 1 . Emergency Access Points 2 | . . 2 Unreport Threat 1 | . . 1 Security Status 1 | . . 1 Transport Status 1 | . . 1 Recall Reinforcements 1 | . . 1 Hauler Manifests 1 | . . 1 Fabricator Hacks . | . . . Repair Station Hacks 2 | . . 2 Scan Component 1 | . . 1 Repair 1 | . . 1 Recycling Unit Hacks 3 | . . 3 Recycle Component 1 | . . 1 Process 1 | . . 1 Retrieve Components 1 | . . 1 Scanalyzer . | . . . Garrison Access Hacks . | . . . Unauthorized Hacks . | . . . Terminals . | . . . Fabricators . | . . . Repair Stations . | . . . Recycling Units . | . . . Scanalyzers . | . . . Garrison Access . | . . . Data Cores Recovered . | . . . Used . | . . . Hacking Detections 7 | . 3 4 Full Trace Events 2 | . 2 . Feedback Events . | . . . Feedback Blocked . | . . . Robot Schematics Acquired . | . . . Robots Built . | . . . Matter . | . . . Time . | . . . Total Robot Build Rating . | . . . Part Schematics Acquired . | . . . Parts Built . | . . . Matter . | . . . Time . | . . . Total Part Build Rating . | . . . Parts Repaired 1 | . . 1 Time 19 | . . 19 Parts Recycled 1 | . . 1 Recycled Matter 85 | . . 85 Retrieved Matter . | . . . Retrieved Components . | . . . Parts Scanalyzed . | . . . Part Schematics Acquired . | . . . Parts Damaged . | . . . Bothacking | -11 -10 -9 ------------ Run | Scr Mat Mat Used RIF Installer . | . . . Robots Hacked . | . . . Non-combat . | . . . Combat . | . . . Robot Hacks Applied . | . . . Relay Couplers Released . | . . . Robots Rewired . | . . . Allies Hacked . | . . . Hacks Repelled . | . . . Allies | -11 -10 -9 -------- Run | Scr Mat Mat Total Allies . | . . . Largest Group . | . . . Highest-Rated Group . | . . . Highest-Rated Ally . | . . . Total Orders . | . . . Ally Attacks . | . . . Total Damage . | . . . Kills . | . . . Allies Corrupted . | . . . Allies Melted . | . . . Intel | -11 -10 -9 ------- Run | Scr Mat Mat Robot Analysis Total 1 | . 1 . Derelict Logs Recovered . | . . . Drone Launches . | . . . Drone Recoveries . | . . . Exploration | -11 -10 -9 ------------- Run | Scr Mat Mat Turns Passed 1393 | 153 345 895 Spaces Moved 703 | 72 185 446 Core 22 | 13 . 9 Treads 681 | 59 185 437 Legs . | . . . Wheels . | . . . Hover . | . . . Flight . | . . . Fastest Speed 50 | 50 160 100 Average Speed 158 | 140 160 160 Slowest Speed 400 | 160 160 400 Overloaded Moves . | . . . Propulsion Burnouts . | . . . Robots Hopped . | . . . Cave-ins Triggered . | . . . Exploration Rate (%) 26 | 7 35 37 Regions Visited 2 Branch Regions . Pre-discovered Areas . | . . . Known Exits Taken . | . . . Unknown Exits Taken 2 | 1 1 . Scrap Searched . | . . . Spaces Dug 10 | . 10 . Terrain Destroyed 91 | . 64 27 Melee . | . . . Projectile . | . . . AOE 91 | . 64 27 Actions | -11 -10 -9 --------- Run | Scr Mat Mat Total 882 | 124 206 552 Wait 70 | 39 . 31 Move 701 | 71 184 446 Hop . | . . . Pick Up 22 | 8 3 11 Fast Attach 2 | . . 2 Attach 18 | 6 1 11 Detach 2 | . 1 1 Swap . | . . . Drop 9 | . 1 8 Fire 55 | . 16 39 Melee . | . . . Ram 1 | . . 1 Kick . | . . . Crush 2 | . . 2 Escape Stasis . | . . . Rewire . | . . . Trap . | . . . Miscellaneous . | . . . Route ------- -11/Scrapyard -10/Materials -9/Materials (discovered 1 exit: [*Sto]) History --------- Turn | Location | Event 9 | -11/Scrapyard | Discovered new exit (range 15) 154 | -11/Scrapyard | Entered Materials 317 | -10/Materials | Build established: Mutant 394 | -10/Materials | Core integrity fell below 50% 420 | -10/Materials | Discovered new exit (range 14) 499 | -10/Materials | Entered another Materials area 499 | -9/Materials | Evolved 2 slots: Power x1, Weapon x1 556 | -9/Materials | Repaired Lgt. Nuclear Core 744 | -9/Materials | Destroyed 7 combat bots 1090 | -9/Materials | Build established: Gunner 1371 | -9/Materials | Core integrity fell below 50% 1385 | -9/Materials | Discovered new exit (range 16) 1392 | -9/Materials | Core integrity fell below 20% 1394 | -9/Materials | Destroyed by Y-45 Defender with Beam Rifle Last Messages --------------- 01379_ U-05 Engineer lays Concrete. 01380_ Acquired 25 matter. 01381_ Lgt. EM Pulse Cannon destroyed. 01381_ U-05 Engineer lays Concrete. 01381_ Cooling System destroyed. 01383_ A-02 Transporter destroyed. 01383_ Imp. Light Cannon destroyed. 01384_ U-05 Engineer lays Concrete. 01385_ Acquired 22 matter. 01385_ EXIT=FOUND 01385_ U-05 Engineer lays Concrete. 01385_ Lgt. Treads destroyed. 01387_ G-34 Mercenary destroyed. 01387_ Imp. Light Cannon destroyed. 01388_ Acquired 8 matter. 01392_ Acquired 42 matter. 01393_ Acquired 3 matter. 01394_ Slammed into G-34 Mercenary. 01394_ Destabilizing: Core damaged (-20). 01394_ K-01 Serf collects debris. Map ----- +----------------------------------------------------+ | ???????????????????????? [ ??????????????????????? | | ???????????????????????# %!#?????????????????????? | | ???????????????????????#%= #?????????????????????? | | ???????????????????????# #?????????????????????? | | ???????????????????????# #?????????????????????? | | ???????????????????????# #?????????????????????? | | ???????????????????????+ #?????########????????? | | ???????????????????????# #?????# #????????? | | ???????????????????????# #?????#= #????????? | | ???????????????????????# #?????# """#????????? | | ???????????????????????# #?????# """#????????? | | ???????????????????????# #?????# """#????????? | | ???????????????????????# #?????# #??????### | | ???????????????????????# u[##########+########## | | ???????????????????????#= | | ?????????????????#######=* % | | ?????????? =k!%=% | | ???????????????#########==Y###+############### | | ???????????????????????#%==# # # " | | ???????????????????????#! g# # # " | | ??????????????????????##!==# # """"" # " | | ???????????????????????#=!!# # """"" # " | | ???????????????????????#==%# """ """ # """"" + | | ???????????????????????#= *# """ """ # # | | ???????????????????????#*%=# """ """ # !! # | | ???????????????????????#g@g# # !! # | | ???????????????????????#Y #####+###?# ! [ # | | ???????????????????????# w #?????????# ! + | | ???????????????????????# #?????????# = ##"T" | | ???????????????????????# #?????????############# | | ???????????????????????# #????????????????????# | | ??????????????????????? ?????????????????# / | | ??????????????????????? ?????????????????#### | | ??????????????????????? < ????????????????????# | | ??????????????????????# ???????????????????# | | ??????????????????????# #???????????????????# | | ??????????????????????## ##???????????????????## | | ???????????????????????# #?????????????????????? | | ???????????????????????? ??????????????????????? | | ???????????????????????? a??????????????????????? | | ???????????????????????? ??????????????????????? | | ?????????????????????????????????????????????????? | | ?????????????????????????????????????????????????? | | ?????????????????????????????????????????????????? | | ?????????????????????????????????????????????????? | | ?????????????????????????????????????????????????? | | ?????????????????????????????????????????????????? | | ?????????????????????????????????????????????????? | | ?????????????????????????????????????????????????? | | ?????????????????????????????????????????????????? | +----------------------------------------------------+ Best States ------------- Heat Dissipation 50 Energy Generation 23 Energy Capacity 275 Matter Stores 300 Matter Capacity 300 Sight Range 16 Terrain Scan Density 10 Evasion (%) 50 Recoil Reduction 2 Item Schematics ----------------- None Robot Schematics ------------------ None Fabricated ------------ Nothing Alien Tech Used ----------------- None Achievements -------------- None Challenges ------------ None Game ------ Seed CloakingRocketInjector Manual? 0 Play Time 00:18:46 Cumulative 16.4 hours Start 2019.12.13 @ 12:18:16 End 2019.12.13 @ 13:00:00 Sessions 1 Manual Loads 0 Difficulty Rogue Special Mode None Game No. 69 Rogue 65 Adventurer 0 Explorer 4 Win Type - Total 0 Types 0/0/0/0/0/0/0 Lore% 20 Gallery% 16 Achievement% 16 Wizard Run 0 Options --------- ASCII 0 Keyboard 0 Movement Arrows Keybinds 0 Fullscreen 1 Font 18/SmallcapsGlow Map View 76x50 Tactical HUD 1 Map Filters NONE Filters NONE Steam 1 RUN: 5d337920-14f4-429e-8797-b4fe7ffbc8a1